{"text_format":"1","workbook":"xlsx","n_sheets":5,"sheets":["入力","出張伺","校外学習伺兼出張伺","出張伺(様式）","校外学習伺兼出張伺 （様式）"],"not_rendered":{"charts":0,"images":0,"macros":1,"external_links":1,"defined_names":2,"comments":0,"pivot_tables":0},"unopened":[],"bounds":{"document_bytes":16777216,"sheet_cells":100000,"rows_first":2000,"rows_last":500,"rows_between":2000,"halvings":0,"cell_chars":16384,"cell_head_chars":4096},"cells_cut":0,"cells_raw":0,"read":"whole","date_system":"1900"}

{"sheet":"入力","index":0,"n_rows":97,"n_cols":15,"rows_kept":97,"cut":false,"hidden":false,"merged":[[53,2,54,2],[49,4,49,6],[54,4,54,6],[43,2,44,2],[43,3,44,3],[43,4,44,4],[43,5,44,8],[45,2,46,2],[45,3,46,3],[45,4,46,4],[45,5,46,5],[45,6,46,8],[50,2,51,2],[50,3,51,8],[41,5,42,8],[41,4,42,4],[41,3,42,3],[48,2,49,2],[52,3,52,8],[47,3,47,8],[41,2,42,2],[32,3,32,7],[36,2,37,2],[0,1,0,5],[21,1,21,5],[34,1,34,5],[5,3,5,5],[27,3,27,7],[7,3,7,4],[23,3,23,7],[28,3,28,4],[6,5,6,6],[8,5,8,6],[24,4,24,7],[29,3,29,7],[31,3,31,7],[11,6,15,7]]}
[null,"出張伺・校外学習伺共通項目入力"]
[]
[null,1,"所属学校名"]
[null,2,"氏名"]
[null,3,"研修会案内添付の有無"]
[null,4,"研修会等用務の内容（案内添付で省略可）\n＊校外学習の場合は入力必須"]
[null,5,"出発地",null,"滞在地の場合住所入力→"]
[null,6,"目的地",null,null,null,"（番地まで入力）"]
[null,7,"帰着地",null,"滞在地の場合住所入力→"]
[null,8,"使用する交通機関",null,null,null,"（番地まで入力）"]
[null,null,null,"和暦","月","日"]
[null,9,"研修会・行事等　開催年月日",null,null,null,"　　案内添付で省略可\n　"]
[null,null,null,"時","分"]
[null,10,"研修会・行事等　開会時間"]
[null,null,null,"時","分"]
[null,11,"研修会・行事等　閉会時間"]
[null,null,null,"時","分"]
[null,12,"出発時間"]
[null,null,null,"時","分"]
[null,13,"帰着時間"]
[]
[null,"出張伺任意項目入力"]
[null,14,"複数交通用具利用",null,null,null,"使用する交通機関が2つ以上ある場合は、入力してください。"]
[null,15,"複数交通用具利用時の行程"]
[null,18,"有料道路の利用有無","□有料道路の利用","有料道路利用の場合は区間と理由を記載してください。"]
[null,null,"区間（往路）","  □往路区間（",null,"）～　　　　　　（",null,"）"]
[null,null,"区間（復路）","  □復路区間（",null,"）～　　　　　　（",null,"）"]
[null,null,"有料道路利用の理由"]
[null,19,"有料駐車場の利用有無","□有料駐車場の利用"]
[null,null,"有料駐車場利用の理由"]
[null,20,"タクシーの利用有無","□タクシーの利用"]
[null,null,"タクシー利用の理由"]
[null,21,"備考"]
[]
[null,"校外学習伺必須項目入力"]
[]
[null,22,"複数引率者氏名\n（2名以上の場合、二人目以降を入力してください）"]
[]
[null,null,null,"年","組"]
[null,23,"実施学年"]
[null,24,"参加児童生徒数",null,"人"]
[null,25,"学習の目的","□別紙計画書の通り","別紙計画書がない場合はこちらに記入→"]
[]
[null,26,"日程・経路・その他","□別紙計画書の通り","別紙計画書がない場合はこちらに記入→"]
[]
[null,27,"利用交通手段",null,null,"その他の場合はこちらに記入→"]
[]
[null,28,"緊急連絡先"]
[null,29,"使用備品等"]
[null,null,null,"その他の場合はこちらに記入→"]
[null,30,"必要経費（支出）\n「交通費・見学料等」"]
[]
[null,31,"収入の内訳\n（1人当たりの集金額がわかるように）"]
[null,32,"必要経費の財源"]
[null,null,null,"その他の場合はこちらに記入→"]
[]
[null,null,"入力は以上です。"]
[]
[]
[]
[]
[]
[]
[]
[]
[]
[]
[]
[]
[]
[]
[]
[null,null,"プルダウンメニュー項目（変更しないでください）"]
[]
[]
[null,null,null,null,null,null,null,null,"□有料駐車場の利用",null," □時間単位で利用",null," □日単位で利用",null,"□有料道路の利用"]
[null,null,"十川小","学校","　 １　 公用車・借上車",null,"四万十町中央ＩＣ",null,"☑有料駐車場の利用",null," ☑時間単位で利用",null," ☑日単位で利用",null,"☑有料道路の利用"]
[null,null,"昭和小","自宅","　 ２　 貸切バス",null,"四万十町東ＩＣ"]
[null,null,"田野々小","滞在地","　 ３　 自家用車",null,"中土佐ＩＣ",null,"  □往路区間（",null,null,"救急箱"]
[null,null,"北ノ川小",null,"　 ４　 同　 乗",null,"須崎西ＩＣ",null,"  ☑往路区間（",null,null,"デジタルカメラ"]
[null,null,"川口小","有","　 ５　 電車・バス",null,"須崎東ＩＣ",null,"  □復路区間（",null,null,"ビデオカメラ"]
[null,null,"窪川小","無","　 ６　 高速バス",null,null,null,"  ☑復路区間（",null,null,"拡声器"]
[null,null,"七里小",null,"　 ７　 鉄 　道",null,"須崎東ＩＣ",null,"□タクシーの利用",null,null,"無線機"]
[null,null,"仁井田小","□","　 ８　 船　 舶",null,"土佐ＩＣ",null,"☑タクシーの利用",null,null,"その他"]
[null,null,"興津小","☑","　 ９　 航空機",null,"伊野ＩＣ"]
[null,null,"影野小",null,"　 10　モノレール",null,"高知ＩＣ"]
[null,null,"東又小",null,"　 11　空港連絡バス",null,"南国ＩＣ",null,"□別紙計画書の通り",null,null,"公費"]
[null,null,"米奥小",null,"　 12　自転車",null,"大豊ＩＣ",null,"☑別紙計画書の通り",null,null,"集金"]
[null,null,"十川中",null,"　 13　徒 　歩",null,null,null,null,null,null,"PTA"]
[null,null,"大正中",null,"　 14　その他",null,"□往路利用",null,null,null,null,"その他"]
[null,null,"窪川中",null,null,null,"☑往路利用",null,"公用車・借上車"]
[null,null,null,null,null,null,"□復路利用",null,"貸切バス",null,null,"□食べる"]
[null,null,null,null,null,null,"☑復路利用",null,"自家用車",null,null,"☑食べる"]
[null,null,null,null,null,null,null,null,"鉄道",null,null,"□食べない"]
[null,null,null,null,null,null,null,null,"自転車",null,null,"☑食べない"]
[null,null,null,null,null,null,null,null,"徒歩",null,null,"□係へ連絡済み"]
[null,null,null,null,null,null,null,null,"その他",null,null,"☑係へ連絡済み"]

{"sheet":"出張伺","index":1,"n_rows":73,"n_cols":36,"rows_kept":73,"cut":false,"hidden":false,"merged":[[0,0,0,35],[1,0,1,35],[2,0,2,35],[3,0,3,25],[3,26,3,30],[3,31,3,33],[3,34,3,35],[7,0,10,0],[7,1,8,8],[7,9,8,9],[7,10,8,10],[7,11,8,13],[7,14,8,14],[4,1,4,18],[4,19,4,25],[4,26,4,35],[5,0,6,0],[5,1,5,25],[5,26,5,35],[6,2,6,25],[6,26,6,35],[7,15,8,15],[7,16,8,16],[7,17,8,25],[7,26,7,35],[8,26,9,35],[9,1,10,8],[9,9,10,9],[9,10,10,10],[9,11,10,13],[9,14,10,14],[9,15,10,15],[9,16,10,16],[9,17,10,25],[10,26,10,35],[11,1,11,5],[11,6,11,15],[11,16,11,20],[11,21,11,25],[11,26,27,35],[14,2,14,4],[14,21,15,22],[14,23,15,25],[16,0,19,0],[16,1,16,5],[16,6,19,15],[16,16,16,20],[16,21,19,25],[17,1,17,2],[17,4,17,5],[12,0,15,0],[12,1,12,5],[12,6,15,15],[12,16,12,20],[12,21,13,22],[12,23,13,25],[13,1,13,2],[13,4,13,5],[13,16,13,17],[13,19,13,20],[17,16,17,17],[17,19,17,20],[18,2,18,4],[18,17,18,19],[20,0,23,0],[20,1,20,5],[20,6,23,15],[20,16,20,20],[14,17,14,19],[25,19,25,20],[26,2,26,4],[20,21,23,25],[21,1,21,2],[21,4,21,5],[21,16,21,17],[21,19,21,20],[22,2,22,4],[22,17,22,19],[29,26,29,28],[29,29,29,35],[30,2,30,4],[30,17,30,19],[30,26,30,28],[30,29,30,35],[26,17,26,19],[28,0,31,0],[28,1,28,5],[28,6,31,15],[28,16,28,20],[28,21,31,25],[29,1,29,2],[29,4,29,5],[29,16,29,17],[29,19,29,20],[24,0,27,0],[24,1,24,5],[24,6,27,15],[24,16,24,20],[24,21,27,25],[25,1,25,2],[25,4,25,5],[25,16,25,17],[32,0,32,35],[33,0,33,35],[34,0,34,22],[34,23,34,35],[35,0,35,10],[35,11,36,22],[35,23,35,35],[36,0,36,10],[36,23,36,27],[36,28,36,34],[39,0,39,10],[39,11,40,22],[39,23,39,35],[40,23,40,35],[41,11,41,22],[41,23,41,35],[37,28,37,34],[38,0,38,1],[38,2,38,4],[38,5,38,6],[38,7,38,9],[38,23,38,35],[37,0,37,1],[37,2,37,4],[37,5,37,6],[37,7,37,9],[37,11,38,22],[37,23,37,27],[43,0,43,31],[43,32,43,35],[44,0,45,31],[44,32,44,35],[45,32,45,35],[47,0,50,0],[47,1,47,26],[47,27,51,30],[47,32,51,32],[47,33,47,35],[53,0,57,0],[53,26,53,35],[54,26,57,26],[54,27,54,29],[54,30,54,32],[48,1,50,4],[48,5,50,8],[48,9,48,22],[48,23,50,26],[48,33,51,35],[49,9,50,12],[49,13,50,14],[49,15,50,22],[51,1,51,4],[51,5,51,8],[54,33,54,35],[55,27,57,29],[55,30,57,32],[55,33,57,35],[57,1,57,24],[53,1,56,24],[51,9,51,12],[51,13,51,22],[51,23,51,26]]}
[]
["様式第２号（第３条関係）"]
["出張・校外勤務・自家用車公務使用　伺"]
["※伺は用務の１０日前までに（案内文書添付のうえ）提出してください。\n※チケット・宿泊券等の手配を要する旅行については、１５日前までに提出してください。",null,null,null,null,null,null,null,null,null,null,null,null,null,null,null,null,null,null,null,null,null,null,null,null,null,"四万十町立",null,null,null,null,{"$f":"入力!D3","v":0},null,null,"学校"]
["氏　　名",{"$f":"入力!D4","v":0},null,null,null,null,null,null,null,null,null,null,null,null,null,null,null,null,null,null,null,null,null,null,null,null,"所　属　長　承　認\nサイン又は印"]
["用務の\n内　 容",{"$f":"入力!D6","v":0},null,null,null,null,null,null,null,null,null,null,null,null,null,null,null,null,null,null,null,null,null,null,null,null,"年　　 月 　　日　"]
[null,{"$f":"IF(入力!D5=\"有\",\"☑\",\"□\")","v":"□"},"用務・期日は別紙案内の通り（案内を添付すれば用務の内容・期日の記載は不要）",null,null,null,null,null,null,null,null,null,null,null,null,null,null,null,null,null,null,null,null,null,null,null,"支給の承認欄"]
["期　　日",{"$f":"IF(入力!D12=\"\",\"\",DATE(入力!D12+2018,入力!E12,入力!F12))","v":""},null,null,null,null,null,null,null,"（",{"$f":"TEXT(B8,\"aaa\")","v":""},"曜日）",null,null,{"$f":"入力!D14","v":0},"時",{"$f":"入力!E14","v":0},"分から　　開会時間",null,null,null,null,null,null,null,null," 有料駐車場　　　　　　承認"]
[null,null,null,null,null,null,null,null,null,null,null,null,null,null,null,null,null,null,null,null,null,null,null,null,null,null," 有料道路　　　　 　　　承認"]
[null,{"$f":"B8","v":""},null,null,null,null,null,null,null,"（",{"$f":"K8","v":""},"曜日）",null,null,{"$f":"入力!D16","v":0},"時",{"$f":"入力!E16","v":0},"分まで　　閉会時間"]
[null,null,null,null,null,null,null,null,null,null,null,null,null,null,null,null,null,null,null,null,null,null,null,null,null,null," タクシー　　　　 　　　　承認"]
["月／日","出 発 地\n\n出発時刻",null,null,null,null,"目的地（会場名）\n又 は 経 由 地",null,null,null,null,null,null,null,null,null,"帰 着 地\n\n帰着時刻",null,null,null,null,"交 通 機 関\n右から選択\n番 号 記 入",null,null,null,null,"\n　 １　 公用車・借上車\n　 ２　 貸切バス\n　 ３　 自家用車\n　 ４　 同　 乗\n　 ５　 電車・バス\n　 ６　 高速バス\n　 ７　 鉄 　道\n　 ８　 船　 舶\n　 ９　 航空機\n　 10　モノレール\n　 11　空港連絡バス\n　 12　自転車\n　 13　徒 　歩\n　 14　その他\n　 　　（　　　　 　　　　　　　 　）"]
[{"$f":"B8","v":""},null,null,null,null,null,{"$f":"入力!D8","v":0},null,null,null,null,null,null,null,null,null,null,null,null,null,null,{"$f":"LEFT(入力!D10,4)","v":""},null,{"$f":"LEFT(入力!D23,4)","v":""}]
[null,"学校",null,"・","自宅",null,null,null,null,null,null,null,null,null,null,null,"学校",null,"・","自宅"]
[null,null,"滞在地",null,null,null,null,null,null,null,null,null,null,null,null,null,null,"滞在地",null,null,null,{"$f":"LEFT(入力!E23,4)","v":""},null,{"$f":"LEFT(入力!F23,4)","v":""}]
[null,null,{"$f":"入力!D18","v":0},"時",{"$f":"入力!E18","v":0},"分",null,null,null,null,null,null,null,null,null,null,null,{"$f":"入力!D20","v":0},"時",{"$f":"入力!E20","v":0},"分"]
["／"]
[null,"学校",null,"・","自宅",null,null,null,null,null,null,null,null,null,null,null,"学校",null,"・","自宅"]
[null,null,"滞在地",null,null,null,null,null,null,null,null,null,null,null,null,null,null,"滞在地"]
[null,null,null,"時",null,"分",null,null,null,null,null,null,null,null,null,null,null,null,"時",null,"分"]
["／"]
[null,"学校",null,"・","自宅",null,null,null,null,null,null,null,null,null,null,null,"学校",null,"・","自宅"]
[null,null,"滞在地",null,null,null,null,null,null,null,null,null,null,null,null,null,null,"滞在地"]
[null,null,null,"時",null,"分",null,null,null,null,null,null,null,null,null,null,null,null,"時",null,"分"]
["／"]
[null,"学校",null,"・","自宅",null,null,null,null,null,null,null,null,null,null,null,"学校",null,"・","自宅"]
[null,null,"滞在地",null,null,null,null,null,null,null,null,null,null,null,null,null,null,"滞在地"]
[null,null,null,"時",null,"分",null,null,null,null,null,null,null,null,null,null,null,null,"時",null,"分"]
["／"]
[null,"学校",null,"・","自宅",null,null,null,null,null,null,null,null,null,null,null,"学校",null,"・","自宅",null,null,null,null,null,null,"出発滞在地住所：",null,null,{"$f":"入力!F7&\"\"","v":""}]
[null,null,"滞在地",null,null,null,null,null,null,null,null,null,null,null,null,null,null,"滞在地",null,null,null,null,null,null,null,null,"帰着滞在地住所：",null,null,{"$f":"入力!F9&\"\"","v":""}]
[null,null,null,"時",null,"分",null,null,null,null,null,null,null,null,null,null,null,null,"時",null,"分"]
["※交通機関を複数利用の場合は、行程（経路・利用交通機関）を記入して下さい。"]
[{"$f":"入力!D24&\"\"","v":""}]
["　下記の項目について利用する場合は□にチェックを入れ、必要事項と利用する理由を記入してください。",null,null,null,null,null,null,null,null,null,null,null,null,null,null,null,null,null,null,null,null,null,null,"宿泊を伴う場合は以下の欄にも記入　\n（希望するホテルがあれば記入する）"]
[{"$f":"入力!D29","v":"□有料駐車場の利用"},null,null,null,null,null,null,null,null,null,null,"理由",null,null,null,null,null,null,null,null,null,null,null,"　１．宿泊施設　ホテル"]
[{"$f":"入力!D25","v":"□有料道路の利用"},null,null,null,null,null,null,null,null,null,null,null,null,null,null,null,null,null,null,null,null,null,null,"　　 （第一希望　",null,null,null,null,null,null,null,null,null,null,null,")"]
[{"$f":"入力!D26","v":"  □往路区間（"},null,{"$f":"入力!E26","v":0},null,null,"）～（",null,{"$f":"入力!G26","v":0},null,null,"）",{"$f":"入力!D30","v":0},null,null,null,null,null,null,null,null,null,null,null,"　　 （第二希望　",null,null,null,null,null,null,null,null,null,null,null,")"]
[{"$f":"入力!D27","v":"  □復路区間（"},null,{"$f":"入力!E27","v":0},null,null,"）～（",null,{"$f":"入力!G27","v":0},null,null,"）",null,null,null,null,null,null,null,null,null,null,null,null,"　２．自宅"]
[{"$f":"入力!D31","v":"□タクシーの利用"},null,null,null,null,null,null,null,null,null,null,{"$f":"入力!D28","v":0},null,null,null,null,null,null,null,null,null,null,null,"　３．実家・親戚・知人宅"]
[null,null,null,null,null,null,null,null,null,null,null,null,null,null,null,null,null,null,null,null,null,null,null,"　４．車中"]
[null,null,null,null,null,null,null,null,null,null,null,{"$f":"入力!D32","v":0},null,null,null,null,null,null,null,null,null,null,null,"　５．その他"]
[]
["□変更　　□取止　提出後、内容に変更があった場合は速やかに届け出る（変更箇所を朱書きする）",null,null,null,null,null,null,null,null,null,null,null,null,null,null,null,null,null,null,null,null,null,null,null,null,null,null,null,null,null,null,null,"所属長承認"]
["理由",null,null,null,null,null,null,null,null,null,null,null,null,null,null,null,null,null,null,null,null,null,null,null,null,null,null,null,null,null,null,null,"サイン又は印"]
[]
[]
["区　　分","出　　　　　　　　　　張",null,null,null,null,null,null,null,null,null,null,null,null,null,null,null,null,null,null,null,null,null,null,null,null,null,"校外勤務",null,null,null,null,"チェック","出勤簿"]
[null,"配　 当",null,null,null,"配当外",null,null,null,"別　　　 途",null,null,null,null,null,null,null,null,null,null,null,null,null,"旅費無"]
[null,null,null,null,null,null,null,null,null,"管内旅費",null,null,null,"その他",null,"(                                )"]
[]
["（命令番号）"]
[]
["備　　考",{"$f":"入力!D33","v":0},null,null,null,null,null,null,null,null,null,null,null,null,null,null,null,null,null,null,null,null,null,null,null,null,"県外自家用車使用時"]
[null,null,null,null,null,null,null,null,null,null,null,null,null,null,null,null,null,null,null,null,null,null,null,null,null,null,"決裁欄","教育長",null,null,"教育次長",null,null,"課長"]
[]
[]
[]
[]
[]
["南国IC"]
["高知IC"]
["伊野IC"]
["土佐IC"]
["土佐PA"]
["須崎東IC"]
[]
["須崎東IC"]
["須崎中央IC"]
["須崎西IC"]
["中土佐IC"]
["四万十町東ＩＣ"]
["四万十町中央ＩＣ"]

{"sheet":"校外学習伺兼出張伺","index":2,"n_rows":53,"n_cols":41,"rows_kept":53,"cut":false,"hidden":false,"merged":[[52,28,52,29],[49,28,49,29],[51,10,52,12],[51,13,52,15],[46,27,47,29],[47,19,49,22],[51,28,51,29],[45,31,49,31],[13,36,16,40],[36,20,36,23],[28,25,36,40],[27,19,27,24],[46,23,52,26],[48,16,48,18],[18,23,18,25],[18,30,18,31],[18,35,18,39],[35,20,35,23],[28,7,37,18],[20,7,22,40],[27,25,27,40],[49,32,49,36],[3,39,4,39],[3,40,4,40],[10,23,10,26],[25,8,25,10],[47,7,49,9],[48,13,49,15],[49,16,49,18],[47,13,47,18],[38,7,43,40],[25,12,25,15],[25,23,25,26],[25,28,25,30],[23,10,23,40],[25,35,25,39],[29,20,29,23],[31,20,31,23],[33,20,33,23],[0,1,0,40],[5,7,6,31],[1,7,1,12],[2,7,2,12],[3,7,3,12],[1,13,1,18],[2,13,2,18],[3,13,3,18],[1,1,3,6],[5,1,6,6],[5,32,6,32],[1,20,1,26],[2,20,2,26],[3,20,3,26],[1,27,1,31],[2,27,2,31],[3,27,3,31],[4,7,4,31],[1,32,4,32],[3,33,4,34],[3,35,4,35],[3,37,4,37],[3,38,4,38],[3,36,4,36],[7,1,9,6],[11,1,12,6],[10,1,10,6],[7,7,7,17],[7,30,7,31],[9,7,9,17],[10,31,10,34],[10,35,10,38],[11,7,12,35],[11,36,12,40],[7,23,7,25],[9,23,9,25],[7,27,7,28],[7,21,7,22],[9,21,9,22],[9,30,9,31],[9,27,9,28],[10,7,10,8],[10,10,10,11],[10,14,10,17],[10,18,10,20],[10,27,10,28],[46,1,52,6],[51,7,52,9],[46,7,46,22],[13,7,16,35],[38,1,44,6],[13,1,16,6],[20,1,22,6],[23,1,23,6],[23,7,23,9],[18,8,18,12],[18,14,18,16],[18,18,18,21],[27,7,27,18],[47,10,49,12],[25,17,25,21],[24,1,26,6],[25,31,25,33],[17,1,19,6],[18,32,18,33],[51,16,52,18],[27,1,37,6],[51,19,52,22],[18,26,18,28],[44,27,44,40]]}
[null,"校外学習（計画）・出張・校外勤務 伺"]
[null,"氏　　　　名",null,null,null,null,null,{"$f":"入力!D4","v":0},null,null,null,null,null,{"$f":"IF(入力!D37=\"\",\"\",入力!D37)","v":""},null,null,null,null,null,null,{"$f":"IF(入力!E37=\"\",\"\",入力!E37)","v":""},null,null,null,null,null,null,{"$f":"IF(入力!F37=\"\",\"\",入力!F37)","v":""},null,null,null,null,"所属長承認"]
[null,null,null,null,null,null,null,{"$f":"IF(入力!G37=\"\",\"\",入力!G37)","v":""},null,null,null,null,null,{"$f":"IF(入力!H37=\"\",\"\",入力!H37)","v":""},null,null,null,null,null,null,{"$f":"IF(入力!I37=\"\",\"\",入力!I37)","v":""},null,null,null,null,null,null,{"$f":"IF(入力!D38=\"\",\"\",入力!D38)","v":""}]
[null,null,null,null,null,null,null,{"$f":"IF(入力!E38=\"\",\"\",入力!E38)","v":""},null,null,null,null,null,{"$f":"IF(入力!F38=\"\",\"\",入力!F38)","v":""},null,null,null,null,null,null,{"$f":"IF(入力!G38=\"\",\"\",入力!G38)","v":""},null,null,null,null,null,null,{"$f":"IF(入力!H38=\"\",\"\",入力!H38)","v":""},null,null,null,null,null,"令和",null,null,"年",null,"月",null,"日"]
[null,null,null,null,null,null,null,"＊各自押印してください。"]
[null,"用務の内容",null,null,null,null,null,{"$f":"入力!D6","v":0},null,null,null,null,null,null,null,null,null,null,null,null,null,null,null,null,null,null,null,null,null,null,null,null,"教頭"]
[]
[null,"期　　　　日",null,null,null,null,null,{"$f":"IF(入力!D12=\"\",\"\",DATE(入力!D12+2018,入力!E12,入力!F12))","v":""},null,null,null,null,null,null,null,null,null,null,null,"（",{"$f":"出張伺!K8","v":""},"曜日）",null,{"$f":"入力!D18","v":0},null,null,"時",{"$f":"入力!E18","v":0},null,"分","から"]
[]
[null,null,null,null,null,null,null,{"$f":"H8","v":""},null,null,null,null,null,null,null,null,null,null,null,"（",{"$f":"U8","v":""},"曜日）",null,{"$f":"入力!D20","v":0},null,null,"時",{"$f":"入力!E20","v":0},null,"分","まで"]
[null,"実施学年",null,null,null,null,null,{"$f":"IF(入力!D40=\"\",\"\",入力!D40)","v":""},null,"年",{"$f":"IF(入力!E40=\"\",\"\",入力!E40)","v":""},null,"組",null,"児童生徒数",null,null,null,{"$f":"IF(入力!D41=\"\",\"\",入力!D41)","v":""},null,null,"名",null,"引率者",null,null,null,{"$f":"COUNTIF(H2:AF4,\">=!\")","v":0},null,"名",null,"参加者合計",null,null,null,{"$f":"SUM(AB11,S11)","v":0},null,null,null,"名"]
[null,"学習の目的",null,null,null,null,null,{"$f":"入力!F42","v":0},null,null,null,null,null,null,null,null,null,null,null,null,null,null,null,null,null,null,null,null,null,null,null,null,null,null,null,null,{"$f":"入力!D42","v":"□別紙計画書の通り"}]
[]
[null,"日程・経路・その他",null,null,null,null,null,{"$f":"入力!F44","v":0},null,null,null,null,null,null,null,null,null,null,null,null,null,null,null,null,null,null,null,null,null,null,null,null,null,null,null,null,{"$f":"入力!D44","v":"□別紙計画書の通り"}]
[]
[]
[]
[null,"利用交通手段"]
[null,null,null,null,null,null,null,null,"公用車・借上車",null,null,null,null,null,"貸切バス",null,null,null,"自家用車",null,null,null,null,"鉄道",null,null,"自転車",null,null,null,"徒歩",null,"その他",null,"(",{"$f":"入力!G46","v":0},null,null,null,null,")"]
[]
[null,"行き先",null,null,null,null,null,{"$f":"入力!D8","v":0}]
[]
[]
[null,"緊急連絡先",null,null,null,null,null,"ＴＥＬ",null,null,{"$f":"入力!D48","v":0}]
[null,"使用備品等"]
[null,null,null,null,null,null,null,null,"救急箱",null,null,null,"デジタルカメラ",null,null,null,null,"ビデオカメラ",null,null,null,null,null,"拡声器",null,null,null,null,"無線機",null,null,"その他",null,null,"（",{"$f":"入力!E50","v":0},null,null,null,null,"）"]
[]
[null,"経費",null,null,null,null,null,"必要経費（支出）「交通費・見学料等」",null,null,null,null,null,null,null,null,null,null,null,"財源",null,null,null,null,null,"収入の内訳（1人当たりの集金額がわかるように）"]
[null,null,null,null,null,null,null,{"$f":"入力!D51","v":0},null,null,null,null,null,null,null,null,null,null,null,null,null,null,null,null,null,{"$f":"入力!D53","v":0}]
[null,null,null,null,null,null,null,null,null,null,null,null,null,null,null,null,null,null,null,null,"・公費"]
[]
[null,null,null,null,null,null,null,null,null,null,null,null,null,null,null,null,null,null,null,null,"・集金"]
[]
[null,null,null,null,null,null,null,null,null,null,null,null,null,null,null,null,null,null,null,null,"・ＰＴＡ"]
[]
[null,null,null,null,null,null,null,null,null,null,null,null,null,null,null,null,null,null,null,null,"・その他"]
[null,null,null,null,null,null,null,null,null,null,null,null,null,null,null,null,null,null,null,"（",{"$f":"入力!E55","v":0},null,null,null,"）"]
[]
[null,"校外学習報告書\n（評価・反省）"]
[]
[]
[]
[]
[]
[null,null,null,null,null,null,null,null,null,null,null,null,null,null,null,null,null,null,null,null,null,null,null,null,null,null,null,"欠席人数（　　　　　人）"]
[null,null,null,null,null,null,null,null,null,null,null,null,null,null,null,null,null,null,null,null,null,null,null,null,null,null,null,null,null,null,null,"所属長承認"]
[null,"区分\n\n\n（命令番号）",null,null,null,null,null,"出　　　　張",null,null,null,null,null,null,null,null,null,null,null,null,null,null,null,"校外勤務",null,null,null,"チェック"]
[null,null,null,null,null,null,null,"配当",null,null,"配当外",null,null,"別　途",null,null,null,null,null,"旅費無"]
[null,null,null,null,null,null,null,null,null,null,null,null,null,"管内旅費",null,null,"その他"]
[null,null,null,null,null,null,null,null,null,null,null,null,null,null,null,null,"（　　　　）",null,null,null,null,null,null,null,null,null,null,"□","日誌",null,null,null,"　 年　 月 　日"]
[]
[null,null,null,null,null,null,null,null,null,null,null,null,null,null,null,null,null,null,null,null,null,null,null,null,null,null,null,"□","出勤簿"]
[null,null,null,null,null,null,null,null,null,null,null,null,null,null,null,null,null,null,null,null,null,null,null,null,null,null,null,"□","命令簿"]

{"sheet":"出張伺(様式）","index":3,"n_rows":73,"n_cols":36,"rows_kept":73,"cut":false,"hidden":false,"merged":[[0,0,0,35],[1,0,1,35],[2,0,2,35],[3,0,3,25],[3,26,3,30],[3,31,3,33],[3,34,3,35],[7,0,10,0],[7,1,8,8],[7,9,8,9],[7,10,8,10],[7,11,8,13],[7,14,8,14],[4,1,4,18],[4,19,4,25],[4,26,4,35],[5,0,6,0],[5,1,5,25],[5,26,5,35],[6,2,6,25],[6,26,6,35],[7,15,8,15],[7,16,8,16],[7,17,8,25],[7,26,7,35],[8,26,9,35],[9,1,10,8],[9,9,10,9],[9,10,10,10],[9,11,10,13],[9,14,10,14],[9,15,10,15],[9,16,10,16],[9,17,10,25],[10,26,10,35],[11,1,11,5],[11,6,11,15],[11,16,11,20],[11,21,11,25],[11,26,27,35],[14,2,14,4],[14,21,15,22],[14,23,15,25],[16,0,19,0],[16,1,16,5],[16,6,19,15],[16,16,16,20],[16,21,19,25],[17,1,17,2],[17,4,17,5],[12,0,15,0],[12,1,12,5],[12,6,15,15],[12,16,12,20],[12,21,13,22],[12,23,13,25],[13,1,13,2],[13,4,13,5],[13,16,13,17],[13,19,13,20],[17,16,17,17],[17,19,17,20],[18,2,18,4],[18,17,18,19],[20,0,23,0],[20,1,20,5],[20,6,23,15],[20,16,20,20],[14,17,14,19],[25,19,25,20],[26,2,26,4],[20,21,23,25],[21,1,21,2],[21,4,21,5],[21,16,21,17],[21,19,21,20],[22,2,22,4],[22,17,22,19],[29,26,29,28],[29,29,29,35],[30,2,30,4],[30,17,30,19],[30,26,30,28],[30,29,30,35],[26,17,26,19],[28,0,31,0],[28,1,28,5],[28,6,31,15],[28,16,28,20],[28,21,31,25],[29,1,29,2],[29,4,29,5],[29,16,29,17],[29,19,29,20],[24,0,27,0],[24,1,24,5],[24,6,27,15],[24,16,24,20],[24,21,27,25],[25,1,25,2],[25,4,25,5],[25,16,25,17],[32,0,32,35],[33,0,33,35],[34,0,34,22],[34,23,34,35],[35,0,35,10],[35,11,36,22],[35,23,35,35],[36,0,36,10],[36,23,36,27],[36,28,36,34],[39,0,39,10],[39,11,40,22],[39,23,39,35],[40,23,40,35],[41,11,41,22],[41,23,41,35],[37,28,37,34],[38,0,38,1],[38,2,38,4],[38,5,38,6],[38,7,38,9],[38,23,38,35],[37,0,37,1],[37,2,37,4],[37,5,37,6],[37,7,37,9],[37,11,38,22],[37,23,37,27],[43,0,43,31],[43,32,43,35],[44,0,45,31],[44,32,44,35],[45,32,45,35],[47,0,50,0],[47,1,47,26],[47,27,51,30],[47,32,51,32],[47,33,47,35],[48,1,50,4],[48,5,50,8],[48,9,48,22],[48,23,50,26],[48,33,51,35],[49,9,50,12],[49,13,50,14],[49,15,50,22],[51,1,51,4],[51,5,51,8],[55,27,57,29],[55,30,57,32],[55,33,57,35],[57,1,57,24],[51,9,51,12],[51,13,51,22],[51,23,51,26],[53,0,57,0],[53,1,56,24],[53,26,53,35],[54,26,57,26],[54,27,54,29],[54,30,54,32],[54,33,54,35]]}
[]
["様式第２号（第３条関係）"]
["出張・校外勤務・自家用車公務使用　伺"]
["※伺は用務の１０日前までに（案内文書添付のうえ）提出してください。\n※チケット・宿泊券等の手配を要する旅行については、１５日前までに提出してください。",null,null,null,null,null,null,null,null,null,null,null,null,null,null,null,null,null,null,null,null,null,null,null,null,null,"四万十町立",null,null,null,null,null,null,null,"学校"]
["氏　　名",null,null,null,null,null,null,null,null,null,null,null,null,null,null,null,null,null,null,null,null,null,null,null,null,null,"所　属　長　承　認\nサイン又は印"]
["用務の\n内　 容",null,null,null,null,null,null,null,null,null,null,null,null,null,null,null,null,null,null,null,null,null,null,null,null,null,"年　　 月 　　日　"]
[null,{"$f":"IF(入力!D5=\"有\",\"☑\",\"□\")","v":"□"},"用務・期日は別紙案内の通り（案内を添付すれば用務の内容・期日の記載は不要）",null,null,null,null,null,null,null,null,null,null,null,null,null,null,null,null,null,null,null,null,null,null,null,"支給の承認欄"]
["期　　日","令和　　年　　月　　日",null,null,null,null,null,null,null,"（",null,"曜日）",null,null,null,"時",null,"分から　　開会時間",null,null,null,null,null,null,null,null," 有料駐車場　　　　　　承認"]
[null,null,null,null,null,null,null,null,null,null,null,null,null,null,null,null,null,null,null,null,null,null,null,null,null,null," 有料道路　　　　 　　　承認"]
[null,"令和　　年　　月　　日",null,null,null,null,null,null,null,"（",null,"曜日）",null,null,null,"時",null,"分まで　　閉会時間"]
[null,null,null,null,null,null,null,null,null,null,null,null,null,null,null,null,null,null,null,null,null,null,null,null,null,null," タクシー　　　　 　　　　承認"]
["月／日","出 発 地\n\n出発時刻",null,null,null,null,"目的地（会場名）\n又 は 経 由 地",null,null,null,null,null,null,null,null,null,"帰 着 地\n\n帰着時刻",null,null,null,null,"交 通 機 関\n右から選択\n番 号 記 入",null,null,null,null,"\n　 １　 公用車・借上車\n　 ２　 貸切バス\n　 ３　 自家用車\n　 ４　 同　 乗\n　 ５　 電車・バス\n　 ６　 高速バス\n　 ７　 鉄 　道\n　 ８　 船　 舶\n　 ９　 航空機\n　 10　モノレール\n　 11　空港連絡バス\n　 12　自転車\n　 13　徒 　歩\n　 14　その他\n　 　　（　　　　 　　　　　　　 　）"]
["／"]
[null,"学校",null,"・","自宅",null,null,null,null,null,null,null,null,null,null,null,"学校",null,"・","自宅"]
[null,null,"滞在地",null,null,null,null,null,null,null,null,null,null,null,null,null,null,"滞在地"]
[null,null,null,"時",null,"分",null,null,null,null,null,null,null,null,null,null,null,null,"時",null,"分"]
["／"]
[null,"学校",null,"・","自宅",null,null,null,null,null,null,null,null,null,null,null,"学校",null,"・","自宅"]
[null,null,"滞在地",null,null,null,null,null,null,null,null,null,null,null,null,null,null,"滞在地"]
[null,null,null,"時",null,"分",null,null,null,null,null,null,null,null,null,null,null,null,"時",null,"分"]
["／"]
[null,"学校",null,"・","自宅",null,null,null,null,null,null,null,null,null,null,null,"学校",null,"・","自宅"]
[null,null,"滞在地",null,null,null,null,null,null,null,null,null,null,null,null,null,null,"滞在地"]
[null,null,null,"時",null,"分",null,null,null,null,null,null,null,null,null,null,null,null,"時",null,"分"]
["／"]
[null,"学校",null,"・","自宅",null,null,null,null,null,null,null,null,null,null,null,"学校",null,"・","自宅"]
[null,null,"滞在地",null,null,null,null,null,null,null,null,null,null,null,null,null,null,"滞在地"]
[null,null,null,"時",null,"分",null,null,null,null,null,null,null,null,null,null,null,null,"時",null,"分"]
["／"]
[null,"学校",null,"・","自宅",null,null,null,null,null,null,null,null,null,null,null,"学校",null,"・","自宅",null,null,null,null,null,null,"出発滞在地住所：",null,null,{"$f":"入力!F7&\"\"","v":""}]
[null,null,"滞在地",null,null,null,null,null,null,null,null,null,null,null,null,null,null,"滞在地",null,null,null,null,null,null,null,null,"帰着滞在地住所：",null,null,{"$f":"入力!F9&\"\"","v":""}]
[null,null,null,"時",null,"分",null,null,null,null,null,null,null,null,null,null,null,null,"時",null,"分"]
["※交通機関を複数利用の場合は、行程（経路・利用交通機関）を記入して下さい。"]
[]
["　下記の項目について利用する場合は□にチェックを入れ、必要事項と利用する理由を記入してください。",null,null,null,null,null,null,null,null,null,null,null,null,null,null,null,null,null,null,null,null,null,null,"宿泊を伴う場合は以下の欄にも記入　\n（希望するホテルがあれば記入する）"]
["□有料駐車場の利用",null,null,null,null,null,null,null,null,null,null,"理由",null,null,null,null,null,null,null,null,null,null,null,"　１．宿泊施設　ホテル"]
["□有料道路の利用",null,null,null,null,null,null,null,null,null,null,null,null,null,null,null,null,null,null,null,null,null,null,"　　 （第一希望　",null,null,null,null,null,null,null,null,null,null,null,")"]
["　□往路区間（",null,null,null,null,"）～（",null,null,null,null,"）",null,null,null,null,null,null,null,null,null,null,null,null,"　　 （第二希望　",null,null,null,null,null,null,null,null,null,null,null,")"]
["　□復路区間（",null,null,null,null,"）～（",null,null,null,null,"）",null,null,null,null,null,null,null,null,null,null,null,null,"　２．自宅"]
["□タクシーの利用",null,null,null,null,null,null,null,null,null,null,null,null,null,null,null,null,null,null,null,null,null,null,"　３．実家・親戚・知人宅"]
[null,null,null,null,null,null,null,null,null,null,null,null,null,null,null,null,null,null,null,null,null,null,null,"　４．車中"]
[null,null,null,null,null,null,null,null,null,null,null,null,null,null,null,null,null,null,null,null,null,null,null,"　５．その他"]
[]
["□変更　　□取止　提出後、内容に変更があった場合は速やかに届け出る（変更箇所を朱書きする）",null,null,null,null,null,null,null,null,null,null,null,null,null,null,null,null,null,null,null,null,null,null,null,null,null,null,null,null,null,null,null,"所属長承認"]
["理由",null,null,null,null,null,null,null,null,null,null,null,null,null,null,null,null,null,null,null,null,null,null,null,null,null,null,null,null,null,null,null,"サイン又は印"]
[]
[]
["区　　分","出　　　　　　　　　　張",null,null,null,null,null,null,null,null,null,null,null,null,null,null,null,null,null,null,null,null,null,null,null,null,null,"校外勤務",null,null,null,null,"チェック","出勤簿"]
[null,"配　 当",null,null,null,"配当外",null,null,null,"別　　　 途",null,null,null,null,null,null,null,null,null,null,null,null,null,"旅費無"]
[null,null,null,null,null,null,null,null,null,"管内旅費",null,null,null,"その他",null,"(                                )"]
[]
["（命令番号）"]
[]
["備　　考",null,null,null,null,null,null,null,null,null,null,null,null,null,null,null,null,null,null,null,null,null,null,null,null,null,"県外自家用車使用時"]
[null,null,null,null,null,null,null,null,null,null,null,null,null,null,null,null,null,null,null,null,null,null,null,null,null,null,"決裁欄","教育長",null,null,"教育次長",null,null,"課長"]
[]
[]
[]
[]
[]
["南国IC"]
["高知IC"]
["伊野IC"]
["土佐IC"]
["土佐PA"]
["須崎東IC"]
[]
["須崎東IC"]
["須崎中央IC"]
["須崎西IC"]
["中土佐IC"]
["四万十町東ＩＣ"]
["四万十町中央ＩＣ"]

{"sheet":"校外学習伺兼出張伺 （様式）","index":4,"n_rows":53,"n_cols":41,"rows_kept":53,"cut":false,"hidden":false,"merged":[[0,1,0,40],[1,1,3,6],[1,7,1,12],[1,13,1,18],[1,20,1,26],[1,27,1,31],[1,32,4,32],[2,7,2,12],[2,13,2,18],[2,20,2,26],[3,35,4,35],[3,36,4,36],[3,37,4,37],[3,38,4,38],[3,39,4,39],[3,40,4,40],[2,27,2,31],[3,7,3,12],[3,13,3,18],[3,20,3,26],[3,27,3,31],[3,33,4,34],[4,7,4,31],[5,1,6,6],[5,7,6,31],[5,32,6,32],[7,1,9,6],[7,7,7,17],[7,21,7,22],[7,23,7,25],[7,27,7,28],[7,30,7,31],[9,7,9,17],[10,27,10,28],[10,31,10,34],[10,35,10,38],[11,1,12,6],[11,7,12,35],[11,36,12,40],[9,21,9,22],[9,23,9,25],[9,27,9,28],[9,30,9,31],[10,1,10,6],[10,7,10,8],[10,10,10,11],[10,14,10,17],[10,18,10,20],[10,23,10,26],[18,32,18,33],[18,35,18,39],[20,1,22,6],[20,7,22,40],[23,1,23,6],[23,7,23,9],[23,10,23,40],[13,1,16,6],[13,7,16,35],[13,36,16,40],[17,1,19,6],[18,8,18,12],[18,14,18,16],[18,18,18,21],[18,23,18,25],[18,26,18,28],[18,30,18,31],[25,31,25,33],[25,35,25,39],[27,1,37,6],[27,7,27,18],[27,19,27,24],[27,25,27,40],[28,7,37,18],[28,25,36,40],[29,20,29,23],[31,20,31,23],[24,1,26,6],[25,8,25,10],[25,12,25,15],[25,17,25,21],[25,23,25,26],[25,28,25,30],[33,20,33,23],[35,20,35,23],[36,20,36,23],[52,28,52,29],[49,28,49,29],[38,1,44,6],[45,31,49,31],[46,1,52,6],[46,7,46,22],[46,23,52,26],[46,27,47,29],[51,7,52,9],[51,10,52,12],[51,13,52,15],[51,16,52,18],[51,19,52,22],[51,28,51,29],[47,7,49,9],[47,10,49,12],[47,13,47,18],[47,19,49,22],[48,13,49,15],[48,16,48,18],[49,16,49,18],[44,27,44,40],[38,7,43,40],[49,32,49,36]]}
[null,"校外学習（計画）・出張・校外勤務 伺"]
[null,"氏　　　　名",null,null,null,null,null,null,null,null,null,null,null,null,null,null,null,null,null,null,{"$f":"IF(入力!E37=\"\",\"\",入力!E37)","v":""},null,null,null,null,null,null,{"$f":"IF(入力!F37=\"\",\"\",入力!F37)","v":""},null,null,null,null,"所属長承認"]
[null,null,null,null,null,null,null,{"$f":"IF(入力!G37=\"\",\"\",入力!G37)","v":""},null,null,null,null,null,{"$f":"IF(入力!H37=\"\",\"\",入力!H37)","v":""},null,null,null,null,null,null,{"$f":"IF(入力!I37=\"\",\"\",入力!I37)","v":""},null,null,null,null,null,null,{"$f":"IF(入力!D38=\"\",\"\",入力!D38)","v":""}]
[null,null,null,null,null,null,null,{"$f":"IF(入力!E38=\"\",\"\",入力!E38)","v":""},null,null,null,null,null,{"$f":"IF(入力!F38=\"\",\"\",入力!F38)","v":""},null,null,null,null,null,null,{"$f":"IF(入力!G38=\"\",\"\",入力!G38)","v":""},null,null,null,null,null,null,{"$f":"IF(入力!H38=\"\",\"\",入力!H38)","v":""},null,null,null,null,null,null,null,null,"年",null,"月",null,"日"]
[null,null,null,null,null,null,null,"＊各自押印してください。"]
[null,"用務の内容",null,null,null,null,null,null,null,null,null,null,null,null,null,null,null,null,null,null,null,null,null,null,null,null,null,null,null,null,null,null,"教頭"]
[]
[null,"期　　　　日",null,null,null,null,null,"       　年　月　日",null,null,null,null,null,null,null,null,null,null,null,"（",null,"曜日）",null,null,null,null,"時",null,null,"分","から"]
[]
[null,null,null,null,null,null,null,{"$f":"H8","v":"       　年　月　日"},null,null,null,null,null,null,null,null,null,null,null,"（",null,"曜日）",null,null,null,null,"時",null,null,"分","まで"]
[null,"実施学年",null,null,null,null,null,null,null,"年",null,null,"組",null,"児童生徒数",null,null,null,null,null,null,"名",null,"引率者",null,null,null,{"$f":"COUNTIF(H2:AF4,\">=!\")","v":0},null,"名",null,"参加者合計",null,null,null,{"$f":"SUM(AB11,S11)","v":0},null,null,null,"名"]
[null,"学習の目的",null,null,null,null,null,{"$f":"入力!F42","v":0},null,null,null,null,null,null,null,null,null,null,null,null,null,null,null,null,null,null,null,null,null,null,null,null,null,null,null,null,{"$f":"入力!D42","v":"□別紙計画書の通り"}]
[]
[null,"日程・経路・その他",null,null,null,null,null,{"$f":"入力!F44","v":0},null,null,null,null,null,null,null,null,null,null,null,null,null,null,null,null,null,null,null,null,null,null,null,null,null,null,null,null,{"$f":"入力!D44","v":"□別紙計画書の通り"}]
[]
[]
[]
[null,"利用交通手段"]
[null,null,null,null,null,null,null,null,"公用車・借上車",null,null,null,null,null,"貸切バス",null,null,null,"自家用車",null,null,null,null,"鉄道",null,null,"自転車",null,null,null,"徒歩",null,"その他",null,"(",{"$f":"入力!G46","v":0},null,null,null,null,")"]
[]
[null,"行き先"]
[]
[]
[null,"緊急連絡先",null,null,null,null,null,"ＴＥＬ",null,null,{"$f":"入力!D48","v":0}]
[null,"使用備品等"]
[null,null,null,null,null,null,null,null,"救急箱",null,null,null,"デジタルカメラ",null,null,null,null,"ビデオカメラ",null,null,null,null,null,"拡声器",null,null,null,null,"無線機",null,null,"その他",null,null,"（",{"$f":"入力!E50","v":0},null,null,null,null,"）"]
[]
[null,"経費",null,null,null,null,null,"必要経費（支出）「交通費・見学料等」",null,null,null,null,null,null,null,null,null,null,null,"財源",null,null,null,null,null,"収入の内訳（1人当たりの集金額がわかるように）"]
[null,null,null,null,null,null,null,{"$f":"入力!D51","v":0},null,null,null,null,null,null,null,null,null,null,null,null,null,null,null,null,null,{"$f":"入力!D53","v":0}]
[null,null,null,null,null,null,null,null,null,null,null,null,null,null,null,null,null,null,null,null,"・公費"]
[]
[null,null,null,null,null,null,null,null,null,null,null,null,null,null,null,null,null,null,null,null,"・集金"]
[]
[null,null,null,null,null,null,null,null,null,null,null,null,null,null,null,null,null,null,null,null,"・ＰＴＡ"]
[]
[null,null,null,null,null,null,null,null,null,null,null,null,null,null,null,null,null,null,null,null,"・その他"]
[null,null,null,null,null,null,null,null,null,null,null,null,null,null,null,null,null,null,null,"（",{"$f":"入力!E55","v":0},null,null,null,"）"]
[]
[null,"校外学習報告書\n（評価・反省）"]
[]
[]
[]
[]
[]
[null,null,null,null,null,null,null,null,null,null,null,null,null,null,null,null,null,null,null,null,null,null,null,null,null,null,null,"欠席人数（　　　　　人）"]
[null,null,null,null,null,null,null,null,null,null,null,null,null,null,null,null,null,null,null,null,null,null,null,null,null,null,null,null,null,null,null,"所属長承認"]
[null,"区分\n\n\n（命令番号）",null,null,null,null,null,"出　　　　張",null,null,null,null,null,null,null,null,null,null,null,null,null,null,null,"校外勤務",null,null,null,"チェック"]
[null,null,null,null,null,null,null,"配当",null,null,"配当外",null,null,"別　途",null,null,null,null,null,"旅費無"]
[null,null,null,null,null,null,null,null,null,null,null,null,null,"管内旅費",null,null,"その他"]
[null,null,null,null,null,null,null,null,null,null,null,null,null,null,null,null,"（　　　　）",null,null,null,null,null,null,null,null,null,null,"□","日誌",null,null,null,"　 年　 月 　日"]
[]
[null,null,null,null,null,null,null,null,null,null,null,null,null,null,null,null,null,null,null,null,null,null,null,null,null,null,null,"□","出勤簿"]
[null,null,null,null,null,null,null,null,null,null,null,null,null,null,null,null,null,null,null,null,null,null,null,null,null,null,null,"□","命令簿"]